fUST/lending_fUST_20250606
["ID","MTS","AMOUNT","RATE_DAILY","PERIOD"]
[364686298,1749202240530,-162.327175,0.00023324,3]
[364686300,1749202240539,-1457.0,0.000235,2]
[364686302,1749202240549,-1457.0,0.000235,2]
[364686304,1749202240558,-1457.0,0.000235,2]
[364686306,1749202240568,-1457.0,0.000235,2]
[364686308,1749202240579,-1457.0,0.000235,2]
[364686309,1749202240588,-1457.0,0.000235,2]
[364686310,1749202240599,-1457.0,0.000235,2]
[364686311,1749202240608,-1457.0,0.000235,2]
[364686312,1749202240618,-1457.0,0.000235,2]
[364686313,1749202240627,-1457.0,0.000235,2]
[364686314,1749202240636,-22329.32866056,0.00023535,2]
[364686315,1749202240645,-440.0,0.00023561,2]
[364686316,1749202240655,-440.0,0.00023561,2]
[364686318,1749202240664,-440.0,0.00023561,2]
[364686319,1749202240675,-440.0,0.00023561,2]
[364686320,1749202240684,-440.0,0.00023561,2]
[364686321,1749202240694,-440.0,0.00023561,2]
[364686322,1749202240703,-440.0,0.00023561,2]
[364686323,1749202240714,-440.0,0.00023561,2]
[364686324,1749202240723,-440.0,0.00023561,2]
[364686325,1749202240734,-440.0,0.00023561,2]
[364686326,1749202240743,-2921.79,0.00023561,2]
[364686327,1749202240752,-562.33995381,0.00023656,2]
[364686328,1749202240761,-503.12985728,0.00023656,2]
[364686329,1749202240771,-207.38728094,0.00023789,9]
[364686330,1749202240780,-24409.82209078,0.000238,2]
[364686331,1749202240790,-151.0,0.000238,7]
[364686332,1749202240803,-2850.0,0.000238,2]
[364686333,1749202240812,-215.0738,0.00023809,2]
[364686334,1749202240823,-440.0,0.00023835,2]
[364686335,1749202240832,-440.0,0.00023835,2]
[364686336,1749202240841,-440.0,0.00023835,2]
[364686337,1749202240852,-440.0,0.00023835,2]
[364686338,1749202240862,-285.69,0.00023835,2]
[364686339,1749202240872,-440.0,0.00023835,2]
[364686340,1749202240881,-223.40098739,0.00023835,2]
[364686341,1749202240891,-440.0,0.00023835,2]
[364686342,1749202240902,-440.0,0.00023835,2]
[364686343,1749202240914,-440.0,0.00023835,2]
[364686344,1749202240924,-2921.79,0.00023835,2]
[364686345,1749202240934,-700.0,0.00023853,2]
[364686346,1749202240943,-5000.0,0.00023937,2]
[364686347,1749202240955,-5000.0,0.00023937,2]
[364686348,1749202240964,-5000.0,0.00023937,2]
[364686349,1749202240974,-10000.0,0.00024,2]
[364686350,1749202240983,-1002.39753139,0.00024,3]
[364686351,1749202240993,-1002.71186222,0.000241,2]
[364686352,1749202241003,-440.0,0.00024109,2]
[364686353,1749202241012,-526.99632407,0.00024109,2]
[364686354,1749202241022,-529.61,0.00024109,2]
[364686355,1749202241032,-440.0,0.00024109,2]
[364686356,1749202241041,-440.0,0.00024109,2]
[364686357,1749202241051,-440.0,0.00024109,2]
[364686358,1749202241060,-440.0,0.00024109,2]
[364686359,1749202241070,-440.0,0.00024109,2]
[364686360,1749202241079,-2921.79,0.00024109,2]
[364686361,1749202241091,-501.47,0.00024127,4]
[364686362,1749202241106,-405.0,0.00024162,2]
[364686363,1749202241119,-962.0,0.00024162,2]
[364686364,1749202241131,-2000.0,0.000242,2]
[364686365,1749202241141,-151.0,0.000242,8]
[364686366,1749202241150,-150.0,0.00024216,2]
[364686367,1749202241160,-2000.0,0.000243,2]
[364686368,1749202241169,-592.58,0.000243,2]
[364686369,1749202241178,-2000.0,0.000243,2]
[364686370,1749202241187,-176.30904852,0.000243,10]
[364686371,1749202241197,-151.0,0.000243,5]
[364686372,1749202241209,-1781.53584205,0.000243,2]
[364686373,1749202241218,-1781.53584204,0.00024301,2]
[364686374,1749202241227,-1781.53584204,0.00024302,2]
[364686375,1749202241237,-1781.53584204,0.00024302,2]
[364686376,1749202241248,-1781.53584204,0.00024303,2]
[364686377,1749202241263,-501.47,0.00024327,4]
[364686378,1749202241274,-207.38728094,0.00024344,11]
[364686379,1749202241288,-160.0,0.00024352,2]
[364686380,1749202241297,-160.24510217,0.00024352,2]
[364686381,1749202241306,-250.60648377,0.00024371,2]
[364686382,1749202241315,-2000.0,0.00024383,2]
[364686383,1749202241324,-2000.0,0.00024383,2]
[364686384,1749202241333,-2000.0,0.00024383,2]
[364686385,1749202241342,-2000.0,0.00024383,2]
[364686386,1749202241352,-2000.0,0.00024383,2]
[364686387,1749202241361,-2000.0,0.00024383,2]
[364686388,1749202241371,-2000.0,0.00024383,2]
[364686389,1749202241381,-309.78355483,0.00024383,2]
[364686390,1749202241461,-1690.21644517,0.00024383,2]
[364686391,1749202241471,-2000.0,0.00024383,2]
[364686392,1749202241481,-2000.0,0.00024383,2]
[364686393,1749202241491,-1536.46476925,0.00024383,2]
[364686394,1749202241501,-440.0,0.00024383,2]
[364686395,1749202241510,-440.0,0.00024383,2]
[364686396,1749202241520,-440.0,0.00024383,2]
[364686397,1749202241530,-440.0,0.00024383,2]
[364686398,1749202241540,-440.0,0.00024383,2]
[364686399,1749202241548,-440.0,0.00024383,2]
[364686400,1749202241558,-2921.79,0.00024383,2]
[364686401,1749202241567,-189.47,0.00024393,3]
[364686402,1749202241576,-568.43,0.00024393,3]
[364686403,1749202241585,-28104.63,0.000244,2]
[364686404,1749202241594,-82098.99878558,0.000244,7]
[364686433,1749202243429,-35175.88121442,0.000244,7]
[364686434,1749202243440,-176.08956,0.000244,7]
[364686435,1749202243450,-151.0,0.000244,8]
[364686436,1749202243460,-497.53,0.000244,7]
[364686437,1749202243469,-151.0,0.000244,7]
[364686438,1749202243479,-834.50537533,0.000244,7]
[364686439,1749202243488,-151.0,0.000244,7]
[364686440,1749202243497,-160.0,0.00024403,3]
[364686441,1749202243507,-834.50537533,0.00024403,3]
[364686442,1749202243516,-151.0,0.00024403,7]
[364686443,1749202243526,-151.0,0.00024403,7]
[364686444,1749202243535,-206.440224,0.00024403,7]
[364686445,1749202243544,-13175.04825089,0.00024403,20]
[364686446,1749202243583,-2165.30197469,0.00024403,20]
[364686499,1749203027523,254.896942,0.00013699,2]
[364686506,1749203140121,-150.0,0.00018529,2]
[364686507,1749203140146,-150.0,0.00019505,2]
[364686508,1749203140171,-170.380832,0.0001995,2]
[364686509,1749203140195,-239.21447786,0.0001995,2]
[364686510,1749203140220,-254.896942,0.00020187,2]
[364686511,1749203140410,-600.0,0.00020567,2]
[364686512,1749203140434,-164.40050552,0.00021013,2]
[364686513,1749203140455,-153.85781603,0.00021282,2]
[364686514,1749203140475,-600.0,0.00021663,2]
[364686515,1749203140498,-630.52879887,0.00021916,2]
[364686516,1749203148114,-421.99888202,0.00021916,2]
[364686519,1749203208137,-150.0,0.00018533,2]
[364686520,1749203208159,-98.75275251,0.00021916,2]
[364686521,1749203236082,-473.7600221,0.00019816,2]
[364686522,1749203236105,-166.5461409,0.00021817,2]
[364686523,1749203236128,-48.7195666,0.00021916,2]
[364686524,1749203236152,-300.0,0.00021916,2]
[364686525,1749203236178,-440.0,0.00021917,2]
[364686526,1749203236212,-199.24480459,0.00021917,2]
[364686527,1749203236244,-430.0,0.00021917,2]
[364686528,1749203236269,-430.0,0.00021917,2]
[364686529,1749203236291,-70.63054991,0.00021917,2]
[364686530,1749203238100,-359.36945009,0.00021917,2]
[364686531,1749203238122,-430.0,0.00021917,2]
[364686532,1749203238144,-430.0,0.00021917,2]
[364686533,1749203238168,-434.86590658,0.00021917,2]
[364686534,1749203238190,-440.0,0.00021917,2]
[364686535,1749203238211,-430.0,0.00021917,2]
[364686536,1749203238235,-440.0,0.00021917,2]
[364686537,1749203238262,-430.0,0.00021917,2]
[364686538,1749203238283,-281.22241091,0.00021917,2]
[364686539,1749203238306,-440.0,0.00021917,2]
[364686540,1749203238332,-440.0,0.00022191,2]
[364686541,1749203238354,-500.0,0.00022346,2]
[364686542,1749203238376,-207.4,0.0002244,2]
[364686543,1749203238400,-500.0,0.00022461,2]
[364686544,1749203238422,-500.0,0.00022461,2]
[364686545,1749203238445,-500.0,0.00022461,2]
[364686546,1749203238466,-624.85139549,0.00022461,2]
[364686547,1749203238487,-500.0,0.00022461,2]
[364686548,1749203238508,-597.85320696,0.00022461,2]
[364686549,1749203238531,-500.0,0.00022461,2]
[364686550,1749203238556,-500.0,0.00022461,2]
[364686551,1749203238579,-500.0,0.00022461,2]
[364686552,1749203238601,-500.0,0.00022461,2]
[364686553,1749203238624,-500.0,0.00022461,2]
[364686554,1749203238646,-500.0,0.00022461,2]
[364686555,1749203238667,-394.98746746,0.00022461,2]
[364686556,1749203238692,-500.0,0.00022461,2]
[364686557,1749203238713,-613.25268868,0.00022461,2]
[364686558,1749203238736,-500.0,0.00022461,2]
[364686559,1749203238758,-500.0,0.00022461,2]
[364686560,1749203238780,-328.74661874,0.00022461,2]
[364686561,1749203238802,-500.0,0.00022461,2]
[364686562,1749203238825,-500.0,0.00022461,2]
[364686563,1749203238848,-385.12439033,0.00022461,2]
[364686564,1749203238870,-347.56214403,0.00022461,2]
[364686565,1749203241100,-152.43785597,0.00022461,2]
[364686566,1749203241123,-42.37468024,0.00022461,2]
[364686567,1749203242109,-158.5740737,0.00021917,2]
[364686568,1749203243076,-161.4259263,0.00021917,2]
[364686569,1749203243099,-457.62531976,0.00022461,2]
[364686570,1749203243120,-33.5144382,0.00022461,2]
[364686571,1749203245121,-466.4855618,0.00022461,2]
[364686572,1749203245144,-500.0,0.00022461,2]
[364686573,1749203245168,-55.12608162,0.00022461,2]
[364686574,1749203249082,-382.27476057,0.00022461,2]
[364686575,1749203249104,-67.57570052,0.00022461,2]
[364686576,1749203253074,-432.42429948,0.00022461,2]
[364686577,1749203253098,-118.31868424,0.00022461,2]
[364686598,1749203432394,-315.84001474,0.00020361,2]
[364686600,1749203432404,-500.0,0.00020567,2]
[364686602,1749203432414,-23.72498526,0.00021663,2]
[364686845,1749203446675,-17.61934152,0.00021663,2]
[364686847,1749203545883,150.0,0.00018788,2]
[364686852,1749204006078,252.302668,0.00013699,2]
[364686859,1749204338119,-150.0,0.00018287,2]
[364686860,1749204338139,-207.27784921,0.000189,2]
[364686861,1749204356076,-189.15216378,0.000189,2]
[364686862,1749204356097,-252.302668,0.00020187,2]
[364686863,1749204356117,-166.5461409,0.00020261,2]
[364686864,1749204356137,-293.77507321,0.00020361,2]
[364686865,1749204356156,-181.504803,0.00020498,2]
[364686866,1749204356175,-500.0,0.00020567,2]
[364686867,1749204356194,-2480.2162194,0.00021079,2]
[364686868,1749204356213,-206.893183,0.00021162,2]
[364686869,1749204356232,-113.02939942,0.00021259,2]
[364686870,1749204396081,-213.8947898,0.00021259,2]
[364686871,1749204428147,-264.28667533,0.00018979,2]
[364686872,1749204428169,-22.08326052,0.00021259,2]
[364686873,1749204428191,-500.0,0.00021663,2]
[364686874,1749204428215,-1200.0,0.00021913,2]
[364686875,1749204428237,-300.0,0.00021913,2]
[364686876,1749204428259,-300.0,0.00021914,2]
[364686877,1749204428281,-300.0,0.00021914,2]
[364686878,1749204428302,-300.0,0.00021914,2]
[364686879,1749204428325,-174.13578361,0.00022359,2]
[364686880,1749204428348,-300.0,0.00022457,2]
[364686881,1749204428371,-196.83296901,0.00022458,2]
[364686882,1749204430078,-243.16703099,0.00022458,2]
[364686883,1749204430100,-380.72302859,0.00022458,2]
[364686884,1749204435121,-59.27697141,0.00022458,2]
[364686885,1749204435145,-440.0,0.00022458,2]
[364686886,1749204435167,-320.0,0.00022458,2]
[364686887,1749204435189,-171.60782339,0.00022458,2]
[364686888,1749204443079,-168.14375372,0.00022458,2]
[364686889,1749204446079,-138.5456645,0.00022458,2]
[364686890,1749204446101,-403.2245033,0.00022458,2]
[364686891,1749204446129,-36.7754967,0.00022458,2]
[364686892,1749204446151,-440.0,0.00022458,2]
[364686893,1749204446171,-177.36013396,0.00022458,2]
[364686894,1749204454083,-252.63986604,0.00022458,2]
[364686895,1749204454113,-440.0,0.00022458,2]
[364686896,1749204454144,-88.31202184,0.00022458,2]
[364686899,1749204551080,-150.0,0.00018288,2]
[364686900,1749204551101,-6.8,0.00019159,2]
[364686901,1749204563205,-143.2,0.00019159,2]
[364686919,1749204632639,-530.35078556,0.00020358,2]
[364686920,1749204632649,-209.40446984,0.00021785,2]
[364686921,1749204632659,-300.0,0.00022456,2]
[364686922,1749204632669,-175.0,0.00022456,2]
[364686923,1749204632678,-1200.0,0.00022456,2]
[364686924,1749204632687,-212.58232678,0.00022457,2]
[364686925,1749204632696,-500.0,0.00022457,2]
[364686926,1749204632706,-500.0,0.00022457,2]
[364686927,1749204632715,-500.0,0.00022457,2]
[364686928,1749204632726,-209.45826559,0.00022457,2]
[364686929,1749204632736,-285.5850187,0.00022457,2]
[364686931,1749204632746,-500.0,0.00022457,2]
[364686932,1749204632755,-500.0,0.00022457,2]
[364686934,1749204632764,-480.97184653,0.00022457,2]
[364686936,1749204632777,-340.0043165,0.00022457,2]
[364686938,1749204632787,-440.0,0.00022458,2]
[364686939,1749204632796,-440.0,0.00022458,2]
[364686941,1749204632805,-440.0,0.00022458,2]
[364686943,1749204632814,-440.0,0.00022458,2]
[364686944,1749204632823,-440.0,0.00022458,2]
[364686946,1749204632833,-440.0,0.00022458,2]
[364686948,1749204632842,-440.0,0.00022458,2]
[364686950,1749204632852,-440.0,0.00022458,2]
[364686951,1749204632861,-440.0,0.00022458,2]
[364686953,1749204632871,-440.0,0.00022458,2]
[364686955,1749204632880,-440.0,0.00022458,2]
[364686957,1749204632889,-440.0,0.00022458,2]
[364686958,1749204632899,-500.0,0.00022458,2]
[364686960,1749204632908,-440.0,0.00022458,2]
[364686962,1749204632919,-440.0,0.00022458,2]
[364686964,1749204632928,-440.0,0.00022458,2]
[364686965,1749204632938,-440.0,0.00022458,2]
[364686967,1749204632947,-440.0,0.00022458,2]
[364686969,1749204632957,-440.0,0.00022458,2]
[364686971,1749204632966,-440.0,0.00022458,2]
[364686972,1749204632975,-500.77518585,0.00022458,2]
[364686974,1749204632985,-440.0,0.00022458,2]
[364686975,1749204632998,-440.0,0.00022458,2]
[364686977,1749204633008,-472.60810396,0.00022458,2]
[364686978,1749204633018,-500.0,0.00022458,2]
[364686979,1749204633027,-236.99009611,0.00022458,2]
[364686980,1749204633037,-500.0,0.00022458,2]
[364686981,1749204633047,-440.0,0.00022458,2]
[364686982,1749204633057,-440.0,0.00022458,2]
[364686983,1749204633066,-440.0,0.00022458,2]
[364686984,1749204633078,-440.0,0.00022458,2]
[364686985,1749204633088,-440.0,0.00022458,2]
[364686986,1749204633097,-440.0,0.00022458,2]
[364686987,1749204633107,-440.0,0.00022458,2]
[364686988,1749204633116,-430.0,0.00022458,2]
[364686989,1749204633126,-440.0,0.00022458,2]
[364686990,1749204633135,-440.0,0.00022458,2]
[364686991,1749204633145,-440.0,0.00022458,2]
[364686992,1749204633154,-440.0,0.00022458,2]
[364686993,1749204633164,-440.0,0.00022458,2]
[364686994,1749204633173,-440.0,0.00022458,2]
[364686995,1749204633183,-440.0,0.00022458,2]
[364686996,1749204633192,-440.0,0.00022458,2]
[364686997,1749204633201,-440.0,0.00022458,2]
[364686998,1749204633211,-430.0,0.00022458,2]
[364686999,1749204633221,-440.0,0.00022458,2]
[364687000,1749204633231,-440.0,0.00022458,2]
[364687001,1749204633241,-440.0,0.00022458,2]
[364687002,1749204633251,-474.55,0.00022458,2]
[364687003,1749204633261,-512.30340364,0.00022458,2]
[364687004,1749204633271,-440.0,0.00022458,2]
[364687005,1749204633281,-440.0,0.00022458,2]
[364687006,1749204633290,-440.0,0.00022458,2]
[364687007,1749204633300,-440.0,0.00022458,2]
[364687008,1749204633309,-324.20011254,0.00022458,2]
[364687009,1749204633318,-430.0,0.00022459,2]
[364687010,1749204633327,-400.0,0.00022459,2]
[364687011,1749204633337,-419.14815514,0.00022459,2]
[364687012,1749204633346,-440.0,0.00022459,2]
[364687013,1749204633355,-478.99869573,0.00022459,2]
[364687014,1749204633365,-440.0,0.00022459,2]
[364687015,1749204633375,-420.0,0.00022459,2]
[364687016,1749204633384,-440.0,0.00022459,2]
[364687017,1749204633394,-440.0,0.00022459,2]
[364687018,1749204633404,-154.58255204,0.00022459,2]
[364687019,1749204633414,-449.48507874,0.00022459,2]
[364687020,1749204633424,-430.0,0.00022459,2]
[364687021,1749204633433,-430.0,0.00022459,2]
[364687022,1749204633443,-440.0,0.00022459,2]
[364687023,1749204633452,-440.0,0.00022459,2]
[364687024,1749204633462,-430.0,0.00022459,2]
[364687025,1749204633471,-430.0,0.00022459,2]
[364687026,1749204633480,-400.0,0.00022459,2]
[364687027,1749204633489,-440.0,0.00022459,2]
[364687028,1749204633500,-440.0,0.00022459,2]
[364687029,1749204633509,-400.0,0.00022459,2]
[364687030,1749204633519,-440.0,0.00022459,2]
[364687031,1749204633529,-377.39182041,0.00022459,2]
[364687032,1749204633538,-440.0,0.00022459,2]
[364687033,1749204633547,-440.0,0.00022459,2]
[364687034,1749204633557,-430.0,0.00022459,2]
[364687035,1749204633567,-430.0,0.00022459,2]
[364687036,1749204633577,-440.0,0.00022459,2]
[364687037,1749204633586,-440.0,0.00022459,2]
[364687038,1749204633596,-440.0,0.00022459,2]
[364687039,1749204633605,-440.0,0.00022459,2]
[364687040,1749204633614,-440.0,0.00022459,2]
[364687041,1749204633625,-249.49395883,0.00022459,2]
[364687042,1749204633635,-410.82826932,0.00022459,2]
[364687043,1749204633644,-440.0,0.00022459,2]
[364687044,1749204633654,-373.68062164,0.00022459,2]
[364687045,1749204633663,-370.0,0.00022459,2]
[364687046,1749204633673,-374.9402806,0.00022459,2]
[364687047,1749204633683,-440.0,0.00022459,2]
[364687048,1749204633693,-440.0,0.00022459,2]
[364687049,1749204633704,-360.0,0.00022459,2]
[364687050,1749204633715,-440.0,0.00022459,2]
[364687051,1749204633724,-430.0,0.00022459,2]
[364687052,1749204633735,-440.0,0.00022459,2]
[364687053,1749204633746,-440.0,0.00022459,2]
[364687054,1749204633758,-435.19012237,0.00022459,2]
[364687055,1749204633768,-350.0,0.00022459,2]
[364687056,1749204633778,-512.93905228,0.00022459,2]
[364687057,1749204633789,-437.76449362,0.00022459,2]
[364687058,1749204633799,-440.0,0.00022459,2]
[364687059,1749204633810,-334.37116385,0.00022459,2]
[364687060,1749204633819,-415.82551686,0.00022459,2]
[364687061,1749204633830,-440.0,0.00022459,2]
[364687062,1749204633840,-440.0,0.00022459,2]
[364687063,1749204633849,-534.10705261,0.00022459,2]
[364687064,1749204633859,-430.0,0.00022459,2]
[364687065,1749204633868,-429.24794447,0.00022459,2]
[364687066,1749204633878,-440.0,0.00022459,2]
[364687067,1749204633888,-440.0,0.00022459,2]
[364687068,1749204633897,-440.0,0.00022459,2]
[364687069,1749204633906,-430.0,0.00022459,2]
[364687070,1749204633916,-442.87053863,0.00022459,2]
[364687071,1749204633925,-412.57978074,0.00022459,2]
[364687072,1749204633934,-430.0,0.00022459,2]
[364687073,1749204633944,-440.0,0.00022459,2]
[364687074,1749204633954,-357.44061965,0.00022459,2]
[364687075,1749204633963,-404.29426956,0.00022459,2]
[364687076,1749204633973,-353.90422488,0.00022459,2]
[364687077,1749204633982,-440.0,0.00022459,2]
[364687078,1749204633996,-440.0,0.00022459,2]
[364687079,1749204634006,-440.0,0.00022459,2]
[364687080,1749204634016,-352.34221752,0.00022459,2]
[364687081,1749204634025,-521.16,0.00022459,2]
[364687082,1749204634035,-430.0,0.00022459,2]
[364687083,1749204634045,-440.0,0.00022459,2]
[364687084,1749204634055,-440.0,0.00022459,2]
[364687085,1749204634064,-440.0,0.00022459,2]
[364687086,1749204634074,-440.0,0.00022459,2]
[364687087,1749204634084,-440.0,0.00022459,2]
[364687088,1749204634094,-440.0,0.00022459,2]
[364687089,1749204634103,-547.34600542,0.00022459,2]
[364687090,1749204634113,-440.0,0.00022459,2]
[364687091,1749204634122,-440.0,0.00022459,2]
[364687092,1749204634132,-440.0,0.00022459,2]
[364687093,1749204634142,-370.0,0.00022459,2]
[364687094,1749204634151,-406.47748751,0.00022459,2]
[364687095,1749204634161,-404.91057829,0.00022459,2]
[364687096,1749204634171,-417.92456089,0.00022459,2]
[364687097,1749204634181,-400.0,0.00022459,2]
[364687098,1749204634191,-440.0,0.00022459,2]
[364687099,1749204634201,-430.0,0.00022459,2]
[364687100,1749204634210,-440.0,0.00022459,2]
[364687101,1749204634220,-440.0,0.00022459,2]
[364687102,1749204634230,-440.0,0.00022459,2]
[364687103,1749204634240,-430.0,0.00022459,2]
[364687104,1749204634251,-440.0,0.00022459,2]
[364687105,1749204634261,-440.0,0.00022459,2]
[364687106,1749204634271,-368.85402603,0.00022459,2]
[364687107,1749204634281,-440.0,0.00022459,2]
[364687108,1749204634290,-382.11936769,0.00022459,2]
[364687109,1749204634299,-400.0,0.00022459,2]
[364687110,1749204634309,-440.0,0.00022459,2]
[364687111,1749204634318,-440.0,0.00022459,2]
[364687112,1749204634433,-440.0,0.00022459,2]
[364687113,1749204634443,-301.52955287,0.00022459,2]
[364687114,1749204634454,-440.0,0.00022459,2]
[364687115,1749204634463,-440.0,0.00022459,2]
[364687116,1749204634473,-263.6202529,0.00022459,2]
[364687117,1749204634483,-440.0,0.00022459,2]
[364687118,1749204634492,-450.0,0.00022459,2]
[364687119,1749204634503,-440.0,0.00022459,2]
[364687120,1749204634513,-297.75408464,0.00022459,2]
[364687121,1749204634523,-440.0,0.00022459,2]
[364687122,1749204634533,-440.0,0.00022459,2]
[364687123,1749204634542,-440.0,0.00022459,2]
[364687124,1749204634552,-440.0,0.00022459,2]
[364687125,1749204634562,-404.53811523,0.00022459,2]
[364687126,1749204634572,-440.0,0.00022459,2]
[364687127,1749204634582,-495.61111549,0.00022459,2]
[364687128,1749204634592,-440.0,0.00022459,2]
[364687129,1749204634603,-440.0,0.00022459,2]
[364687130,1749204634613,-440.0,0.00022459,2]
[364687131,1749204634623,-440.0,0.00022459,2]
[364687132,1749204634632,-430.0,0.00022459,2]
[364687133,1749204634642,-446.33880489,0.00022459,2]
[364687134,1749204634652,-440.0,0.00022459,2]
[364687135,1749204634661,-223.49018546,0.00022459,2]
[364687136,1749204634671,-440.0,0.00022459,2]
[364687137,1749204634680,-440.0,0.00022459,2]
[364687138,1749204634690,-440.0,0.00022459,2]
[364687139,1749204634699,-440.0,0.00022459,2]
[364687140,1749204634708,-403.02800479,0.00022459,2]
[364687141,1749204634718,-440.0,0.00022459,2]
[364687142,1749204634727,-400.0,0.00022459,2]
[364687143,1749204634736,-440.0,0.00022459,2]
[364687144,1749204634747,-440.0,0.00022459,2]
[364687145,1749204634757,-440.0,0.00022459,2]
[364687146,1749204634766,-440.0,0.00022459,2]
[364687147,1749204634778,-549.21609173,0.00022459,2]
[364687148,1749204634788,-440.0,0.00022459,2]
[364687149,1749204634798,-353.00044493,0.00022459,2]
[364687150,1749204634807,-312.42936226,0.00022459,2]
[364687151,1749204634816,-440.0,0.00022459,2]
[364687152,1749204634826,-440.0,0.00022459,2]
[364687153,1749204634836,-440.0,0.00022459,2]
[364687154,1749204634845,-430.0,0.00022459,2]
[364687155,1749204634855,-440.0,0.00022459,2]
[364687156,1749204634865,-430.0,0.00022459,2]
[364687157,1749204634875,-440.0,0.00022459,2]
[364687158,1749204634885,-400.0,0.00022459,2]
[364687159,1749204634895,-400.0,0.00022459,2]
[364687160,1749204634905,-469.10966085,0.00022459,2]
[364687161,1749204634916,-440.0,0.00022459,2]
[364687162,1749204634925,-400.0,0.00022459,2]
[364687163,1749204634934,-410.64575157,0.00022459,2]
[364687164,1749204634944,-440.0,0.00022459,2]
[364687165,1749204634954,-440.0,0.00022459,2]
[364687166,1749204634963,-440.0,0.00022459,2]
[364687167,1749204634973,-411.94165127,0.00022459,2]
[364687168,1749204634982,-440.0,0.00022459,2]
[364687169,1749204634996,-440.0,0.00022459,2]
[364687170,1749204635007,-440.0,0.00022459,2]
[364687171,1749204635016,-321.6081159,0.00022459,2]
[364687172,1749204635026,-440.0,0.00022459,2]
[364687173,1749204635037,-440.0,0.00022459,2]
[364687174,1749204635047,-440.0,0.00022459,2]
[364687175,1749204635057,-440.0,0.00022459,2]
[364687176,1749204635067,-404.54298885,0.00022459,2]
[364687177,1749204635078,-440.0,0.00022459,2]
[364687178,1749204635088,-440.0,0.00022459,2]
[364687179,1749204635098,-430.0,0.00022459,2]
[364687180,1749204635108,-430.0,0.00022459,2]
[364687181,1749204635118,-430.61054958,0.00022459,2]
[364687182,1749204635127,-440.0,0.00022459,2]
[364687183,1749204635137,-409.28355585,0.00022459,2]
[364687184,1749204635147,-440.0,0.00022459,2]
[364687185,1749204635156,-440.0,0.00022459,2]
[364687186,1749204635166,-440.0,0.00022459,2]
[364687187,1749204635175,-404.68798773,0.00022459,2]
[364687188,1749204635184,-440.0,0.00022459,2]
[364687189,1749204635193,-400.0,0.00022459,2]
[364687190,1749204635202,-440.0,0.00022459,2]
[364687191,1749204635211,-440.0,0.00022459,2]
[364687192,1749204635220,-519.1778053,0.00022459,2]
[364687193,1749204635230,-440.0,0.00022459,2]
[364687194,1749204635239,-440.0,0.00022459,2]
[364687195,1749204635250,-410.00131723,0.00022459,2]
[364687196,1749204635259,-406.0162744,0.00022459,2]
[364687197,1749204635268,-549.57624683,0.00022459,2]
[364687198,1749204635278,-440.0,0.00022459,2]
[364687199,1749204635287,-440.0,0.00022459,2]
[364687200,1749204635297,-440.0,0.00022459,2]
[364687201,1749204635306,-440.0,0.00022459,2]
[364687202,1749204635316,-332.74761613,0.00022459,2]
[364687203,1749204635325,-440.0,0.00022459,2]
[364687204,1749204635334,-430.0,0.00022459,2]
[364687205,1749204635344,-440.0,0.00022459,2]